Cogmind - Beta 14 @@@ ROGUE MODE // 2025.03.29 @ 13:34:11 Player: Jarnogs Result: Destroyed by 3N-UIR(R) with Subdweller Shrapnel Launcher Performance ------------- Evolutions (0) 0 Regions Visited (2) 400 Robots Destroyed (27) 135 Value Destroyed (531) 531 Prototype IDs (0) 0 Alien Tech Used (0) 0 Bonus (-17) -17 TOTAL SCORE: 1049 Bonus ------- Friendly Fire -17 Cogmind --------- Core Integrity 0/250 Matter 280/300 Energy 247/250 System Corruption 1% Temperature Cool (1) Movement Walking (130) Location -10/Subcaves Parts ------- > --- POWER (1) -------- Ion Engine > --- PROPULSION (2) --- Aluminum Leg Makeshift Leg > --- UTILITY (2) ------ Scrap Shield > --- WEAPON (2) ------- Beam Cannon Autogun > --- INVENTORY (5) ---- Visual Processing Unit Subdweller Optics Signal Interpreter Subdweller Beam Cannon Dirty Datajack (20) Peak State ------------ > --- POWER ------------ Ion Engine > --- PROPULSION ------- Aluminum Leg Makeshift Leg > --- UTILITY ---------- Scrap Shield > --- WEAPON ----------- Beam Cannon Autogun > --- INVENTORY -------- Visual Processing Unit Subdweller Optics Signal Interpreter Dirty Datajack [Rating: 14] Favorites ----------- Power Ion Engine Engine Ion Engine Propulsion Aluminum Leg Leg Aluminum Leg Wheel Wheel Utility Structural Scanner Device Structural Scanner Processor Salvage Targeting Computer Protection Scrap Shield Weapon Autogun Energy Gun EM Pulse Gun Energy Cannon Beam Cannon Ballistic Gun Autogun Build | -11 -10 -10 ------- Run | Yrd Mat Sub Slots Evolved . | . . . Power . | . . . Propulsion . | . . . Utility . | . . . Weapon . | . . . Parts Attached 22 | 6 13 3 Power 3 | 1 2 . Engine 3 | 1 2 . Core . | . . . Reactor . | . . . Propulsion 8 | 2 4 2 Treads . | . . . Leg 6 | . 4 2 Wheel 2 | 2 . . Hover . | . . . Flight . | . . . Utility 6 | 1 4 1 Device 4 | 1 3 . Storage . | . . . Processor 1 | . 1 . Hackware . | . . . Protection 1 | . . 1 Artifact . | . . . Weapon 5 | 2 3 . Energy Gun 1 | 1 . . Energy Cannon 1 | . 1 . Ballistic Gun 3 | 1 2 . Ballistic Cannon . | . . . Launcher . | . . . Special Weapon . | . . . Impact Weapon . | . . . Slashing Weapon . | . . . Piercing Weapon . | . . . Special Melee Weapon . | . . . Unidentified Prototypes . | . . . Parts Lost 4 | . 2 2 Power 1 | . 1 . Propulsion 2 | . . 2 Utility . | . . . Weapon 1 | . 1 . Highest Loss Streak 2 | . 2 2 To Critical Strikes . | . . . Average Slot Usage (%) 93 | . 95 87 Engine 13 | . 13 14 Leg 21 | . 20 24 Wheel 5 | . 7 . Device 18 | . 21 11 Processor 2 | . 3 . Protection 2 | . . 8 Energy Gun 1 | . 2 . Energy Cannon 8 | . 6 14 Ballistic Gun 16 | . 17 14 Peak Build Rating 14 | 6 10 14 Average Rating 8 | 3 7 10 On Entrance 4 | . 6 8 Naked Turns . | . . . Heaviest Build 29 | 7 13 29 Greatest Support 30 | 20 20 30 Greatest Overweight (x) 9 | . . 9 Average Overweight (x) . | . . . Largest Inventory Capacity 5 | 5 5 5 Average Capacity 5 | 5 5 5 Most Carried 5 | 2 5 5 Average Carried 2 | . 2 4 Final Capacity 5 | 5 5 5 Final Carried 5 | . 4 5 Class Distribution -------------------- 57% | Mutant 42% | Scavenger-Mutant Dominant Class ---------------- Mutant | -10/Materials Mutant | -10/Subcaves Resources | -11 -10 -10 ----------- Run | Yrd Mat Sub Matter Collected 733 | 252 380 101 Remotely . | . . . Salvage Created 825 | 37 642 146 Parts 51 | 3 37 11 Haulers Intercepted 1 | . 1 . Recyclers Shooed 1 | . 1 . Parts Field Recycled . | . . . Retrieved Matter . | . . . Parts Self-Destructed 17 | . . 17 Prevented . | . . . Kills | -11 -10 -10 ------- Run | Yrd Mat Sub Combat Hostiles Destroyed 19 | 1 13 5 Guns 17 | 1 13 3 Cannons 2 | . . 2 Classes Destroyed 9 | 1 5 3 Hauler 1 | . 1 . Recycler 2 | . 2 . Operator 1 | . 1 . Turret 1 | . . 1 Watcher 3 | . 3 . Swarmer 10 | . 7 3 Grunt 7 | 1 6 . Sentry 1 | . . 1 Subdweller 1 | . . 1 Best Kill Streak 5 | 1 5 3 Combat Bots Only 5 | 1 5 3 Max Kills in Single Turn 2 | 1 2 2 Gunslinging 1 | . 1 . Exploded . | . . . Melee . | . . . Uniques/NPCs Destroyed . | . . . Combat | -11 -10 -10 -------- Run | Yrd Mat Sub Hostile Shots Fired 133 | 2 67 64 Missed 55 | 1 26 28 Damage Taken 985 | 12 369 604 Core 283 | . 64 219 Absorbed by Shields . | . . . Core Remaining (%) 100 | 100 . . Volleys Fired 81 | 2 58 21 Largest 2 | 2 2 2 Hottest 83 | 60 83 83 Shots Fired 151 | 4 105 42 Gun 126 | 4 101 21 Cannon 25 | . 4 21 Launcher . | . . . Special . | . . . Kinetic 105 | 2 82 21 Thermal 25 | . 4 21 Explosive . | . . . Electromagnetic 21 | 2 19 . Robot Hit Streak 9 | 2 8 9 Robot Miss Streak 6 | 1 5 6 Penetration Max . | . . . Secondary Targets 3 | . 3 . Max Gunslinging Chain 1 | . 1 . Shots Hit Robots 82 | 2 56 24 Core Hits 33 | 2 24 7 Critical Kills 1 | . 1 . Critical Parts Destroyed . | . . . Critical Strikes 1 | . 1 . Meltdown 1 | . 1 . Melee Attacks . | . . . Impact . | . . . Slashing . | . . . Piercing . | . . . Sneak Attacks . | . . . Combat Hostiles . | . . . Follow-up Attacks . | . . . Damage Inflicted 1097 | 19 704 374 Guns 834 | 19 652 163 Cannons 263 | . 52 211 Explosions . | . . . Melee . | . . . Ramming . | . . . Kinetic 663 | 6 494 163 Thermal 263 | . 52 211 Explosive . | . . . Electromagnetic 171 | 13 158 . Impact . | . . . Slashing . | . . . Piercing . | . . . Highest Corruption 1 | . 1 1 Average Corruption 1 | . 1 1 Corruption Purged . | . . . Corruption Blocked . | . . . Effects 16 | . 11 5 Message Errors 10 | . 7 3 Matter Fused 3 | . 1 2 Heat Flow Errors 1 | . 1 . Parts Fused 1 | . 1 . Alerts 1 | . 1 . Overload Shots . | . . . Overflow Damage 2 | . 2 . Projectiles 2 | . 2 . Explosions . | . . . Melee . | . . . Knockbacks . | . . . Impact . | . . . Kinetic . | . . . Secondary . | . . . Self-Inflicted Damage . | . . . Shots . | . . . Rammed . | . . . Targets Rammed . | . . . Kicked . | . . . Crushed . | . . . Highest Temperature 170 | 26 170 14 Average Temperature 23 | 15 41 3 Received Heat Transfer 207 | 6 78 123 Siege Activations . | . . . Robots Corrupted 1 | . 1 . Combat Hostiles . | . . . Parts Fried 1 | . 1 . Impact Corruptions . | . . . Robots Melted 1 | . 1 . Combat Hostiles . | . . . Parts Melted 1 | . 1 . Heat Transferred 555 | . 111 444 Parts Sabotaged . | . . . Parts Stolen . | . . . Parts Stripped . | . . . Power Chain Reactions . | . . . Alert | -11 -10 -10 ------- Run | Yrd Mat Sub Peak Influence 324 | 20 324 . Initial 13 | . 13 . Average 155 | 3 161 . Maximum Alert Level 1 | . 1 . Low Security (%) 70 | 100 69 . Level 1 29 | . 30 . Level 2 . | . . . Level 3 . | . . . Level 4 . | . . . Level 5 . | . . . High Security . | . . . Max Security . | . . . Squads Dispatched 4 | . 4 . Investigation 1 | . 1 . Extermination . | . . . Reinforcement 3 | . 3 . Assault . | . . . Garrison . | . . . Intercept . | . . . Searches Triggered . | . . . Construction Impeded . | . . . Haulers Reinforced . | . . . Active Scanning Responses . | . . . Cargo Convoy Interrupts . | . . . Stealth | -11 -10 -10 --------- Run | Yrd Mat Sub Distress Signals 2 | . 2 . Communications Jammed . | . . . Distress Signals . | . . . Times Spotted 46 | 1 26 19 Peak Tracking Total 7 | 1 5 7 Tactical Retreats 5 | . 4 1 Traps | -11 -10 -10 ------- Run | Yrd Mat Sub Traps Triggered 1 | . 1 . Indirectly . | . . . Trap Hack Attempts . | . . . Triggered . | . . . Disarmed . | . . . Reprogrammed . | . . . Reused . | . . . Traps Extracted . | . . . Installed . | . . . Triggered . | . . . Machines | -11 -10 -10 ---------- Run | Yrd Mat Sub Machines Disabled 1 | . . 1 Max in Single Turn 1 | . . 1 Machines Repaired . | . . . Machines Dismantled . | . . . Machines Sabotaged . | . . . Overloaded Fab Kills . | . . . Hacking | -11 -10 -10 --------- Run | Yrd Mat Sub Machines Accessed 7 | . 7 . Terminals 4 | . 4 . Fabricators . | . . . Repair Stations 1 | . 1 . Recycling Units 2 | . 2 . Scanalyzers . | . . . Garrison Access . | . . . Total Hacks 17 | . 17 . Successful 9 | . 9 . Failed 8 | . 8 . Catastrophic 3 | . 3 . Database Lockouts . | . . . Manual 6 | . 6 . Terminals 7 | . 7 . Fabricators . | . . . Repair Stations 3 | . 3 . Recycling Units 7 | . 7 . Scanalyzers . | . . . Garrison Access . | . . . Terminal Hacks 4 | . 4 . Record 2 | . 2 . Branch Access Points 1 | . 1 . Locate Traps 1 | . 1 . Fabricator Hacks . | . . . Repair Station Hacks 1 | . 1 . Scan Component 1 | . 1 . Recycling Unit Hacks 4 | . 4 . Report Inventory 2 | . 2 . Retrieve Components 2 | . 2 . Scanalyzer . | . . . Garrison Access Hacks . | . . . Unauthorized Hacks . | . . . Terminals . | . . . Fabricators . | . . . Repair Stations . | . . . Recycling Units . | . . . Scanalyzers . | . . . Garrison Access . | . . . Data Cores Recovered . | . . . Used . | . . . Hacking Detections 6 | . 6 . Full Trace Events 2 | . 2 . Feedback Events 1 | . 1 . Corruption 1 | . 1 . Feedback Blocked . | . . . Robot Schematics Acquired . | . . . Robots Built . | . . . Authchips . | . . . Time . | . . . Total Robot Build Rating . | . . . Part Schematics Acquired . | . . . Parts Built . | . . . Authchips . | . . . Time . | . . . Total Part Build Rating . | . . . Parts Repaired . | . . . Time . | . . . Parts Recycled . | . . . Recycled Matter . | . . . Retrieved Matter . | . . . Retrieved Components 12 | . 12 . Parts Scanalyzed . | . . . Part Schematics Acquired . | . . . Parts Damaged . | . . . Bothacking | -11 -10 -10 ------------ Run | Yrd Mat Sub Used RIF Installer . | . . . Robots Hacked . | . . . Non-combat . | . . . Combat . | . . . Robot Hacks Applied . | . . . Relay Couplers Released . | . . . Fabnet Peak Effective % . | . . . Robots Rewired . | . . . Allies Hacked . | . . . Hacks Repelled . | . . . Allies | -11 -10 -10 -------- Run | Yrd Mat Sub Total Allies . | . . . Largest Group . | . . . Highest-Rated Group . | . . . Highest-Rated Ally . | . . . Total Orders . | . . . Ally Attacks . | . . . Total Damage . | . . . Kills . | . . . Allies Corrupted . | . . . Allies Melted . | . . . Intel | -11 -10 -10 ------- Run | Yrd Mat Sub Robot Analysis Total . | . . . Derelict Logs Recovered . | . . . Drone Launches . | . . . Drone Recoveries . | . . . Exploration | -11 -10 -10 ------------- Run | Yrd Mat Sub Turns Passed 2033 | 58 1395 580 Spaces Moved 1446 | 57 1045 344 Core 30 | 16 . 14 Treads . | . . . Legs 1055 | . 725 330 Wheels 361 | 41 320 . Hover . | . . . Flight . | . . . Fastest Speed 50 | 50 80 120 Average Speed 114 | 71 107 142 Slowest Speed 500 | 80 120 500 Overloaded Moves . | . . . Propulsion Burnouts . | . . . Robots Hopped . | . . . Cave-ins Triggered . | . . . Exploration Rate (%) 40 | 4 95 21 Regions Visited 2 Branch Regions 1 Pre-discovered Areas 1 | . . 1 Known Exits Taken . | . . . Unknown Exits Taken 2 | 1 1 . Scrap Searched 2 | . . 2 Spaces Dug . | . . . Terrain Destroyed . | . . . Melee . | . . . Projectile . | . . . AOE . | . . . Terrain Rammed . | . . . Walls Destroyed . | . . . Machines Disabled . | . . . Actions | -11 -10 -10 --------- Run | Yrd Mat Sub Total 1699 | 70 1227 402 Wait 106 | . 86 20 Move 1444 | 56 1044 344 Hop . | . . . Pick Up 30 | 6 16 8 Fast Attach . | . . . Attach 15 | 6 6 3 Detach 2 | . 2 . Swap 7 | . 7 . Drop 14 | . 8 6 Fire 81 | 2 58 21 Melee . | . . . Ram . | . . . Kick . | . . . Crush . | . . . Escape Stasis . | . . . Rewire . | . . . Trap . | . . . Miscellaneous . | . . . Route ------- -11/Scrapyard -10/Materials (discovered 6 exits: [*Mat x3] / *Min x2 / [*Sub]) -10/Subcaves (discovered 1 exit: [*Rec]) History --------- Turn | Location | Event 2 | -11/Scrapyard | Met Revision 17 42 | -11/Scrapyard | Discovered new exit (range 8) 59 | -11/Scrapyard | Entered Materials 307 | -10/Materials | Build established: Mutant 329 | -10/Materials | Discovered new exit (range 5) 404 | -10/Materials | Discovered new exit (range 11) 429 | -10/Materials | Discovered new exit (range 12) 545 | -10/Materials | Identified exit to Mines 552 | -10/Materials | Discovered new exit (range 10) 849 | -10/Materials | Discovered new exit (range 7) 1106 | -10/Materials | Build established: Scavenger-Mutant 1454 | -10/Materials | Entered Subcaves 1457 | -10/Subcaves | Discovered new exit (range 10) 1648 | -10/Subcaves | Learned location of Zion (-7) 1648 | -10/Subcaves | Met a Zionite searching for "candidates" 1649 | -10/Subcaves | Ambushed by swarm of Subdwellers 1653 | -10/Subcaves | Core integrity fell below 50% 1674 | -10/Subcaves | Core integrity fell below 20% 1720 | -10/Subcaves | Lost 4 allies 1964 | -10/Subcaves | Build established: Mutant 2034 | -10/Subcaves | Destroyed by 3N-UIR(R) with Subdweller Shrapnel Launcher Last Messages --------------- 01769_ Acquired Scrap Shield Fragment. 01770_ Dropped Scrap Shield Fragment. 01770_ Acquired Scrap Shield Fragment. 01771_ Subatomizers dissect the Targeting Computer. 01772_ Dropped Scrap Shield Fragment. 01781_ Subatomizers dissect the Targeting Computer. 01806_ Subatomizers dissect the Sub. Monowheel. 01813_ O3-BC6(u) tweaks Twisted Machinery. 01943_ Searching scrap... 01943_ Found Sub. Beam Cannon. 01943_ Found 54 Matter. 01944_ Acquired 2 matter. 01946_ Acquired Sub. Beam Cannon. 01948_ Searching scrap... 01948_ Found Sub. Machine Gun. 01948_ Found 42 Matter. 01964_ System corrupted: Matter fused (-8). 01987_ &BF||RZCX/8GDBT:VH0Q%OP,R%E :XX>S Map ----- +----------------------------------------------------+ | ?????????????????????????????????????????????????? | | ?????????????????????????????????????????????????? | | ?????????????????????????????????????????????????? | | ?????????????????????????????????????????????????? | | ?????????????????????????????????????????????????? | | ?????????????????????????????????????????????????? | | ?????????????????????????????????????????????????? | | ?????????????????????????????????????????????????? | | ?????????????????????????????????????????????????? | | ?????????????????????????????????????????????????? | | ?????????????????????????????????????????????????? | | ??????????????????????? ???????????????????????? | | ??????????????????????? " ??????????????????????? | | ???????????????????????" "#??????????????????????? | | ??????????????????????? R###????????????????????? | | ???????????????????????" R #????????????????????? | | ??????????????????????? #????????????????????? | | ???????????????????????# #????????????????????? | | ?????????????????????### ##???????????????????? | | ????????????????????## g ##??????????????????? | | ????????????????????# ##?????????????????? | | ?????????????????##### g ??????????????????? | | ?????????????????# ;; #?????????????????????? | | ?????????????????## ; #?????????????????????? | | ??????????????##?## #?????????????????????? | | ?????????????## ## ;; @##?????????????????????? | | ?????????????# # ;; #?? ???????????????????? | | ?????????????# ## #### #?? ??????????????????? | | ?????????????# ##?###? ??????????????????? | | ????????????## #????? #??# ??????????????? | | ????????????# ##????? ### ???????????????? | | ????????????# #?????# ????????????????? | | ????????????## ##???# ?????????????????? | | ?????????????## ## #??# ??????????????????? | | ??????????????###### ##?? ???????????????????? | | ?????????????????## ##??# #???????????????????? | | ????????????????## ##?# %##??????????????????? | | ??????#####???### ### ##?? ?????????????? | | ??????#" "###?# ![##" ????????????? | | ??????### ""### %* &%" "" ?????????????? | | ????????# "## ### | &&"""#??????????????? | | ????????#" ###" ### #####???????????????? | | ????????## # " ### #???????????????????? | | ?????????# ## ##???????????????????? | | ?????????# ### ##???###?????????????? | | ?????????# #" ### ####?#####????????????? | | ????????### ## ##?### ########"###???????????? | | ????????# "# ####### ###"###"""##???????????? | | ?????#??#%[ ## ####### ##"" ## ""##???????????? | | ?????# ##% ## ## #?????????????? | +----------------------------------------------------+ Best States ------------- Heat Dissipation 35 Energy Generation 10 Energy Capacity 250 Matter Stores 300 Matter Capacity 300 Sight Range 16 Robot Scan Range 14 Terrain Scan Density 10 Armor Coverage 800 Evasion (%) 55 Salvage Targeting 1 Item Schematics ----------------- None Robot Schematics ------------------ None Fabricated ------------ Nothing Alien Tech Used ----------------- None Achievements -------------- None Challenges ------------ None Game ------ Seed BeamLightComputer Manual? 0 Play Time 00:36:18 Cumulative 4.3 hours Start 2025.03.24 @ 00:13:43 End 2025.03.29 @ 13:34:11 Sessions 3 Manual Loads 0 Difficulty Rogue Special Mode None Game No. 3 Rogue 3 Adventurer 0 Explorer 0 Win Type - Total 0 Types 0/0/0/0/0/0/0/0/0 Lore% 9 Gallery% 8 Achievement% 12 Wizard Run 0 Options --------- Layout 1 ASCII 0 Keyboard 0 Movement Mouse Keybinds 0 Fullscreen 2 Font 32/SmallcapsGlow Map View 50x35 Zoom Use 0% Tactical HUD 1 Map Filters NONE Filters NONE Steam 1 RUN: 19ec9177-ae6a-4ac2-a115-d5669db93701